bitfinex/quotes_SOLUSD_20250228
["timestamp","ask_amount","ask_price","bid_price","bid_amount"]
[1740752066449,0.6979,143.28,143.24,312.0]
[1740752066641,1.7441,143.34,143.24,312.0]
[1740752066945,1.7441,143.34,143.22,0.14216157]
[1740752067144,5.21377573,143.34,143.22,0.14216157]
[1740752067343,1.7441,143.34,143.22,18.79181043]
[1740752067938,0.6975,143.36,143.25,0.14216157]
[1740752068140,0.6975,143.36,143.27,0.14216157]
[1740752068751,2.4413,143.36,143.24,0.14216157]
[1740752068960,0.6975,143.36,143.24,0.14216157]
[1740752069159,0.6975,143.36,143.25,0.14216157]
[1740752069540,0.6975,143.36,143.25,18.79181043]
[1740752069730,0.6975,143.36,143.26,0.14216157]
[1740752069932,0.063,143.37,143.21,157.0795]
[1740752069933,0.063,143.37,143.31,312.0]
[1740752070166,0.063,143.37,143.22,0.14216157]
[1740752070545,0.063,143.37,143.22,18.64964886]
[1740752070968,0.063,143.37,143.23,12.88]
[1740752071137,3.57843382,143.37,143.23,33.74]
[1740752071466,0.063,143.37,143.24,39.65181043]
[1740752072033,0.063,143.37,143.28,21.00216157]
[1740752072948,0.063,143.37,143.26,20.86]
[1740752073257,0.063,143.37,143.34,312.0]
[1740752076057,0.063,143.37,143.31,12.76]
[1740752078245,0.063,143.37,143.32,39.65181043]
[1740752079071,0.063,143.37,143.36,312.0]
[1740752079452,0.063,143.37,143.31,19.7377]
[1740752079870,0.063,143.37,143.33,0.14216157]
[1740752080075,0.063,143.37,143.35,18.79181043]
[1740752080650,0.063,143.37,143.32,0.14216157]
[1740752080953,0.0001,143.37,143.33,14.42]
[1740752081171,0.0001,143.37,143.35,0.14216157]
[1740752081472,0.063,143.45,143.39,18.79181043]
[1740752081672,0.063,143.45,143.42,0.14216157]
[1740752081879,0.063,143.45,143.42,12.64]
[1740752082075,0.063,143.45,143.42,19.612]
[1740752082382,0.063,143.45,143.44,351.65181043]
[1740752082879,0.063,143.45,143.44,330.79181043]
[1740752083253,0.063,143.45,143.44,351.65181043]
[1740752083582,0.063,143.5,143.47,18.79181043]
[1740752083757,0.063,143.5,143.49,0.14216157]
[1740752083958,0.063,143.5,143.49,39.65181043]
[1740752084170,0.063,143.5,143.49,46.62091043]
[1740752084679,0.063,143.5,143.49,59.14091043]
[1740752085467,0.063,143.5,143.49,52.17181043]
[1740752086684,0.063,143.5,143.49,364.17181043]
[1740752087250,0.063,143.5,143.49,330.64964886]
[1740752087582,0.063,143.5,143.49,312.0]
[1740752087952,0.063,143.5,143.48,12.42]
[1740752088947,0.063,143.5,143.48,33.28]
[1740752089152,0.09148444,143.49,143.48,33.42216157]
[1740752089380,0.09148444,143.49,143.48,52.07181043]
[1740752089696,0.063,143.5,143.49,0.14216157]
[1740752089865,0.063,143.5,143.48,33.28]
[1740752090190,0.063,143.5,143.49,39.65181043]
[1740752090875,0.063,143.5,143.49,332.86]
[1740752091869,0.063,143.5,143.49,312.0]
[1740752092065,0.063,143.5,143.47,12.42]
[1740752093083,0.063,143.5,143.47,33.28]
[1740752094759,0.063,143.5,143.49,20.86]
[1740752094961,0.063,143.5,143.49,351.65181043]
[1740752095373,0.063,143.5,143.49,332.86]
[1740752095662,0.063,143.5,143.47,12.42]
[1740752096958,0.063,143.5,143.48,18.79181043]
[1740752097163,0.063,143.5,143.49,20.86]
[1740752097389,0.063,143.5,143.49,39.65181043]
[1740752098158,0.063,143.5,143.49,157.03181043]
[1740752098767,0.063,143.5,143.49,469.03181043]
[1740752099583,0.063,143.5,143.49,450.24]
[1740752099891,0.063,143.5,143.47,12.42]
[1740752100181,0.063,143.5,143.44,0.03]
[1740752100391,0.063,143.5,143.45,12.4]
[1740752100988,0.063,143.5,143.46,20.86]
[1740752101355,0.063,143.5,143.48,20.86]
[1740752101560,0.063,143.5,143.45,12.4]
[1740752101754,0.063,143.5,143.44,0.03]
[1740752102184,2.5019,143.5,143.44,0.03]
[1740752102360,7.77324197,143.5,143.33,117.38]
[1740752102571,7.77324197,143.5,143.37,12.4]
[1740752102572,3.43329433,143.45,143.37,12.4]
[1740752102883,0.063,143.5,143.43,312.0]
[1740752103092,0.063,143.5,143.43,429.38]
[1740752103296,1.89182875,143.5,143.33,3.48571104]
[1740752103460,0.14216157,143.45,143.33,15.88571104]
[1740752103663,26.04639265,143.45,143.31,117.4]
[1740752103862,20.79181043,143.43,143.31,117.4]
[1740752104065,18.79181043,143.36,143.25,0.03]
[1740752104284,1.83159058,143.35,143.25,0.03]
[1740752104675,18.79181043,143.3,143.1,4.8769]
[1740752104885,20.79181043,143.28,143.1,33.29]
[1740752105091,3.55460644,143.24,143.1,33.29]
[1740752105262,4.6275,143.29,143.1,33.29]
[1740752105463,2.14216157,143.24,143.1,0.03]
[1740752105664,2.0,143.22,143.1,0.03]
[1740752105965,3.49085611,143.2,143.1,0.03]
[1740752106292,2.4442,143.19,143.1,312.03]
[1740752106677,0.6983,143.19,143.1,312.03]
[1740752107163,0.6983,143.21,143.1,0.03]
[1740752108665,4.24720202,143.23,143.1,0.03]
[1740752109193,1.97504566,143.22,143.1,0.03]
[1740752109371,18.64964886,143.21,143.1,0.03]
[1740752109689,7.82602625,143.23,143.1,0.03]
[1740752109904,6.08062625,143.23,143.1,0.03]
[1740752110196,1.745,143.26,143.14,312.0]
[1740752110367,1.83270393,143.26,143.14,312.0]
[1740752110571,3.43997856,143.25,143.14,312.0]
[1740752111094,3.43997856,143.25,143.1,0.17216157]
[1740752111471,5.3254,143.29,143.15,0.14216157]
[1740752111796,9.0912,143.31,143.17,18.79181043]
[1740752111971,12.62176426,143.31,143.17,18.79181043]
[1740752112285,4.1700451,143.35,143.19,25.77511043]
[1740752112598,4.1700451,143.35,143.2,117.54]
[1740752112773,2.0,143.3,143.16,12.42]
[1740752113090,18.79181043,143.24,143.12,117.54]
[1740752113395,3.5743287,143.26,143.12,117.54]
[1740752113596,1.9749761,143.25,143.12,117.54]
[1740752113799,18.64964886,143.24,143.12,117.54]
[1740752114105,9.8275,143.24,143.12,429.54]
[1740752114402,2.53108948,143.23,143.12,429.54]
[1740752115293,18.64964886,143.22,143.12,117.54]
[1740752115799,3.44240239,143.22,143.12,117.54]
[1740752115989,0.6981,143.23,143.12,117.54]
[1740752116512,10.5256,143.24,143.12,117.54]
[1740752117388,1.83267671,143.23,143.12,117.54]
[1740752117586,10.5256,143.24,143.12,117.54]
[1740752118300,10.5256,143.24,143.14,312.0]
[1740752118882,10.5256,143.24,143.14,318.9859]
[1740752119206,10.5256,143.24,143.12,117.54]
[1740752119207,1.8325964,143.23,143.12,117.54]
[1740752119415,14.1039579,143.24,143.12,117.54]
[1740752119907,10.5256,143.24,143.12,124.5266]
[1740752120096,3.47905341,143.22,143.12,117.54]
[1740752120407,1.83286155,143.23,143.12,117.54]
[1740752121301,12.2709,143.24,143.12,124.527]
[1740752121605,10.5256,143.24,143.12,124.527]
[1740752121804,9.8275,143.24,143.12,162.8548]
[1740752122108,1.83252554,143.23,143.12,117.54]
[1740752122274,18.79181043,143.22,143.12,117.54]
[1740752122478,4.23890133,143.22,143.12,124.527]
[1740752122702,4.23890133,143.22,143.12,6.987]
[1740752123078,4.23890133,143.22,143.1,7.0179]
[1740752124404,9.8275,143.24,143.11,0.14216157]
[1740752124580,10.5256,143.24,143.11,0.14216157]
[1740752124782,5.8327956,143.23,143.1,0.03]
[1740752125008,18.64964886,143.2,143.1,0.03]
[1740752125316,18.64964886,143.16,143.1,0.03]
[1740752125508,5.35956236,143.15,143.1,0.03]
[1740752125881,3.52551179,143.15,143.1,0.03]
[1740752126306,1.83392264,143.14,143.1,0.03]
[1740752126607,0.6986,143.13,143.06,0.03]
[1740752126797,2.4452,143.13,143.06,0.03]
[1740752127005,0.6986,143.13,143.06,0.03]
[1740752127307,3.52551179,143.15,143.06,0.03]
[1740752127481,0.6984,143.18,143.06,0.03]
[1740752127678,1.83377068,143.2,143.07,12.42]
[1740752127884,4.555,143.23,143.08,18.79181043]
[1740752127885,3.54443789,143.19,143.08,18.79181043]
[1740752128084,0.6982,143.21,143.12,312.0]
[1740752128285,0.6982,143.22,143.12,312.0]
[1740752128622,0.6982,143.22,143.11,6.9871]
[1740752128828,4.1438148,143.3,143.18,20.86]
[1740752129119,9.9717,143.32,143.19,12.42]
[1740752129320,9.9717,143.32,143.2,18.79181043]
[1740752129527,9.274,143.32,143.2,39.65181043]
[1740752129898,3.42289424,143.34,143.2,39.65181043]
[1740752130630,3.42289424,143.34,143.21,6.9827]
[1740752130631,4.12049424,143.34,143.21,6.9827]
[1740752130833,1.83161667,143.33,143.19,12.42]
[1740752131026,2.0,143.28,143.12,130.08]
[1740752131325,1.83282536,143.27,143.12,130.08]
[1740752131630,5.33979437,143.27,143.16,312.0]
[1740752131813,9.45,143.25,143.12,130.08]
[1740752132019,18.79181043,143.23,143.12,130.08]
[1740752132221,18.79181043,143.21,143.12,130.08]
[1740752132423,2.4442,143.19,143.06,0.03]
[1740752132931,1.83357638,143.18,143.06,0.03]
[1740752133102,2.4442,143.19,143.06,0.03]
[1740752133308,5.96188641,143.19,143.06,0.03]
[1740752133734,0.6983,143.19,143.06,0.03]
[1740752133921,20.4831577,143.18,143.06,0.03]
[1740752134328,2.4442,143.19,143.06,0.03]
[1740752134542,0.6983,143.19,143.07,0.14216157]
[1740752134711,0.6983,143.19,143.1,312.0]
[1740752135437,0.6983,143.19,143.07,0.14216157]
[1740752135619,0.6982,143.21,143.08,6.989]
[1740752135817,1.83322154,143.2,143.07,6.9895]
[1740752136134,1.83322154,143.2,143.06,0.03]
[1740752136338,0.14216157,143.19,143.06,7.02]
[1740752136534,1.83371362,143.18,143.06,0.03]
[1740752136713,20.48336248,143.18,143.06,0.03]
[1740752137029,20.48336248,143.18,143.06,7.0199]
[1740752137241,3.52998396,143.19,143.06,25.66954886]
[1740752137419,0.063,143.2,143.06,25.66954886]
[1740752137623,0.063,143.2,143.06,43.14464886]
[1740752137822,5.52928336,143.19,143.06,0.03]
[1740752138024,0.14216157,143.17,143.06,0.03]
[1740752138313,3.54128354,143.15,143.06,312.03]
[1740752138926,20.4835538,143.14,143.06,312.03]
[1740752139529,3.54128354,143.15,143.06,312.03]
[1740752139736,0.6986,143.14,143.06,312.03]
[1740752139939,1.7462,143.17,143.06,7.0198]
[1740752139940,0.6985,143.16,143.06,7.0198]
[1740752140437,2.4447,143.16,143.06,0.03]
[1740752140638,2.4447,143.16,143.06,7.0197]
[1740752140816,0.6985,143.16,143.06,7.0197]
[1740752141016,2.4447,143.16,143.06,0.03]
[1740752141218,4.27847389,143.16,143.06,0.03]
[1740752141712,18.64964886,143.15,143.06,0.03]
[1740752141927,1.83405091,143.14,143.06,0.03]
[1740752142241,18.79181043,143.1,143.06,0.03]
[1740752142440,18.64964886,143.08,143.05,0.974039]
[1740752142639,1.83507988,143.07,143.05,0.974039]
[1740752143119,3.50273079,143.07,143.05,0.974039]
[1740752143730,0.699,143.06,143.05,0.974039]
[1740752144043,21.09614886,143.06,143.02,0.03]
[1740752144340,1.83534978,143.05,143.02,0.03]
[1740752144521,1.83534978,143.05,142.97,0.063]
[1740752144716,18.64964886,143.04,142.97,0.063]
[1740752144916,1.8357158,143.03,142.97,0.063]
[1740752145113,18.79181043,143.02,142.97,0.063]
[1740752145319,1.83577497,143.01,142.97,0.063]
[1740752145519,18.64964886,143.0,142.97,0.063]
[1740752145733,0.14216157,143.01,142.97,0.063]
[1740752145938,18.64964886,142.98,142.95,0.03]
[1740752147218,5.19144529,143.0,142.95,0.03]
[1740752147631,2.4472,143.02,142.95,0.03]
[1740752147921,0.6993,142.99,142.95,0.03]
[1740752148250,18.64964886,142.98,142.95,0.03]
[1740752148422,7.47628869,142.97,142.92,0.03]
[1740752148624,18.64964886,142.96,142.92,0.03]
[1740752148944,2.0,142.93,142.8,12.42]
[1740752149135,18.79181043,142.91,142.8,12.45]
[1740752149335,0.14216157,142.91,142.8,0.03]
[1740752149539,1.83725087,142.92,142.8,0.03]
[1740752149721,5.29455624,142.93,142.8,0.03]
[1740752149921,2.4488,142.92,142.8,7.0327]
[1740752150122,2.4488,142.92,142.81,312.0]
[1740752150532,22.62873299,142.91,142.8,0.03]
[1740752150944,20.62873299,142.91,142.8,0.03]
[1740752151323,22.62873299,142.91,142.8,0.03]
[1740752151942,18.79181043,142.89,142.8,0.03]
[1740752152250,3.57186601,142.88,142.8,0.03]
[1740752153532,3.57186601,142.88,142.8,312.03]
[1740752153746,2.4491,142.9,142.8,312.03]
[1740752153929,3.4984,142.92,142.8,0.03]
[1740752154327,3.43422997,142.9,142.8,0.03]
[1740752154735,4.28598013,142.93,142.8,0.03]
[1740752155660,0.6997,142.9,142.8,7.0325]
[1740752156429,2.4491,142.9,142.8,7.0325]
[1740752157059,2.4491,142.9,142.84,312.0]
[1740752158254,0.6997,142.9,142.84,312.0]
[1740752158555,0.6997,142.9,142.82,7.0017]
[1740752159156,0.6997,142.9,142.8,0.03]
[1740752159157,2.4491,142.9,142.8,0.03]
[1740752159460,2.4491,142.9,142.8,7.0327]
[1740752159627,18.79181043,142.89,142.8,0.03]
[1740752160657,0.14216157,142.89,142.8,0.03]
[1740752161157,0.14216157,142.89,142.81,0.03]
[1740752161367,0.14216157,142.89,142.81,312.03]
[1740752161529,3.55852374,142.86,142.81,312.03]
[1740752161729,0.7,142.85,142.81,312.03]
[1740752161926,0.6997,142.91,142.81,7.0323]
[1740752162152,2.4491,142.91,142.81,0.03]
[1740752162532,0.14216157,142.87,142.81,0.03]
[1740752162867,3.57643047,142.88,142.81,0.03]
[1740752163030,5.28621239,142.9,142.81,0.03]
[1740752163361,18.79181043,142.87,142.81,0.03]
[1740752163563,1.83789912,142.86,142.81,0.03]
[1740752163859,2.59216157,142.85,142.81,0.03]
[1740752164041,1.83804502,142.84,142.81,0.03]
[1740752164229,2.45,142.85,142.81,0.03]
[1740752164634,0.7,142.85,142.81,0.03]
[1740752164959,0.7,142.85,142.81,312.03]
[1740752165163,0.6999,142.87,142.81,312.03]
[1740752165456,0.6999,142.87,142.81,0.03]
[1740752165833,1.83719247,142.94,142.81,0.03]
[1740752166035,2.4488,142.93,142.81,0.03]
[1740752166258,0.6993,142.99,142.87,2.14216157]
[1740752166434,0.063,143.0,142.9,23.00216157]
[1740752166635,0.063,143.0,142.88,12.42]
[1740752166636,0.063,143.0,142.93,18.64964886]
[1740752166946,0.063,143.0,142.95,18.64964886]
[1740752167259,0.063,143.0,142.96,12.42]
[1740752167465,0.063,143.0,142.99,0.14216157]
[1740752167757,0.063,143.0,142.96,19.4147]
[1740752168066,0.063,143.0,142.97,18.79181043]
[1740752168270,30.0,143.05,143.01,24.86]
[1740752168558,72.74388142,143.09,143.08,22.14216157]
[1740752168860,0.063,143.2,143.13,0.14216157]
[1740752169051,0.063,143.2,143.15,34.5713369]
[1740752169254,0.063,143.2,143.19,34.48445357]
[1740752169452,0.063,143.2,143.19,34.62661514]
[1740752169661,0.063,143.2,143.17,34.60269665]
[1740752169843,0.063,143.2,143.17,4.14216157]
[1740752170161,0.063,143.2,143.19,2.14216157]
[1740752170357,0.063,143.2,143.19,63.65181043]
[1740752170538,64.26131098,143.34,143.25,0.14216157]
[1740752170733,64.26131098,143.34,143.27,0.14216157]
[1740752170950,64.26131098,143.34,143.27,20.79181043]
[1740752171171,64.26131098,143.34,143.26,130.22]
[1740752171843,67.74951098,143.34,143.28,312.0]
[1740752172050,64.26131098,143.34,143.28,312.0]
[1740752172371,67.74951098,143.34,143.28,312.0]
[1740752173061,0.063,143.35,143.26,117.82]
[1740752173235,0.063,143.35,143.27,0.14216157]
[1740752173441,3.551,143.35,143.26,117.82]
[1740752173651,0.063,143.35,143.27,20.79181043]
[1740752173855,0.063,143.35,143.29,0.14216157]
[1740752174251,0.063,143.35,143.27,0.14216157]
[1740752174485,0.063,143.35,143.27,18.79181043]
[1740752174689,0.063,143.35,143.26,117.82]
[1740752174976,0.063,143.35,143.27,0.14216157]
[1740752175371,0.063,143.35,143.27,20.79181043]
[1740752175581,0.063,143.35,143.29,18.79181043]
[1740752175764,0.063,143.35,143.29,0.14216157]
[1740752175963,0.063,143.35,143.32,312.0]
[1740752176691,3.43843952,143.4,143.32,312.0]
[1740752177188,2.14216157,143.29,143.12,9.52475097]
[1740752177400,0.14216157,143.22,143.12,9.52475097]
[1740752177593,3.83373384,143.22,143.1,9.52475097]
[1740752177752,4.94478016,143.25,143.1,9.52475097]
[1740752177958,12.2156,143.26,143.1,9.52475097]
[1740752178157,18.64964886,143.25,143.11,18.79181043]
[1740752178387,20.48230784,143.25,143.12,12.38]
[1740752178564,18.64964886,143.25,143.12,12.38]
[1740752178770,18.64964886,143.25,143.13,0.14216157]
[1740752178994,3.4901,143.26,143.13,20.64964886]
[1740752179172,3.4901,143.26,143.15,2.0]
[1740752179372,1.83230598,143.25,143.16,117.66]
[1740752179681,12.2154,143.26,143.16,117.66]
[1740752179879,3.4901,143.26,143.17,0.14216157]
[1740752180075,3.4901,143.26,143.18,312.0]
[1740752180480,12.2154,143.26,143.18,312.0]
[1740752181361,3.4901,143.26,143.18,312.0]
[1740752181565,3.4901,143.26,143.17,0.14216157]
[1740752181859,8.7236,143.29,143.17,18.79181043]
[1740752182174,3.4891,143.3,143.17,22.79181043]
[1740752182371,3.4891,143.3,143.19,0.14216157]
[1740752182573,3.4891,143.3,143.2,12.36]
[1740752182762,12.212,143.3,143.2,12.36]
[1740752183775,12.2137,143.28,143.16,117.66]
[1740752183977,18.64964886,143.26,143.16,117.66]
[1740752184581,18.64964886,143.26,143.16,429.66]
[1740752185103,18.64964886,143.24,143.16,429.66]
[1740752185387,18.64964886,143.22,143.12,0.03]
[1740752185591,4.8485,143.26,143.14,18.64964886]
[1740752185897,31.49475744,143.28,143.15,12.36]
[1740752186086,0.14216157,143.26,143.15,12.36]
[1740752186292,18.64964886,143.25,143.15,12.36]
[1740752186473,1.83291611,143.26,143.15,12.36]
[1740752186677,47.1103,143.28,143.15,12.36]
[1740752186978,0.14216157,143.24,143.12,0.03]
[1740752187183,18.79181043,143.19,143.12,0.03]
[1740752187389,18.79181043,143.17,143.06,117.62]
[1740752187568,18.79181043,143.17,143.02,12.36]
[1740752187569,18.79181043,143.15,143.02,12.36]
[1740752187897,12.2266,143.13,143.02,12.36]
[1740752188300,12.2266,143.13,143.04,312.0]
[1740752189191,8.7318,143.16,143.06,0.14216157]
[1740752189403,2.0,143.24,143.06,0.14216157]
[1740752189404,3.4921,143.18,143.06,0.14216157]
[1740752189884,3.4918,143.19,143.06,7.13186157]
[1740752190080,3.4918,143.19,143.05,0.14216157]
[1740752190289,18.64964886,143.18,143.05,0.14216157]
[1740752190601,11.87066765,143.26,143.09,18.79181043]
[1740752190805,3.4904,143.25,143.11,18.79181043]
[1740752191404,0.14216157,143.18,142.98,2.0]
[1740752191609,0.14216157,143.13,142.97,0.03]
[1740752191810,20.79181043,143.11,142.97,0.03]
[1740752191984,0.14216157,143.09,142.97,0.03]
[1740752192187,18.79181043,143.09,142.97,312.03]
[1740752192384,12.2291,143.1,142.97,0.03]
[1740752192606,29.6994,143.1,142.97,0.03]
[1740752192910,3.4933,143.13,142.97,0.03]
[1740752193087,3.4933,143.13,142.97,0.17216157]
[1740752193289,1.97650279,143.12,142.97,0.03]
[1740752193487,18.64964886,143.11,142.97,0.03]
[1740752193710,18.64964886,143.11,142.97,0.17216157]
[1740752193902,3.494,143.1,142.97,0.03]
[1740752194106,20.48427166,143.09,142.97,0.03]
[1740752194707,3.494,143.1,142.97,12.39]
[1740752194884,3.494,143.1,142.98,0.14216157]
[1740752195083,11.87153654,143.14,142.98,39.65181043]
[1740752195304,11.87153654,143.14,143.05,312.0]
[1740752195305,10.037,143.14,143.05,312.0]
[1740752195613,10.037,143.14,143.06,0.14216157]
[1740752195805,10.037,143.14,143.05,12.36]
[1740752196391,20.62597591,143.13,142.99,12.36]
[1740752196789,24.62597591,143.13,142.99,12.36]
[1740752197108,20.62597591,143.13,142.99,12.36]
[1740752197292,22.62597591,143.13,142.99,12.36]
[1740752197495,24.62597591,143.13,142.99,12.36]
[1740752198096,3.4935,143.12,142.99,12.36]
[1740752198301,14.06194984,143.12,143.0,0.14216157]
[1740752198614,3.4935,143.12,143.0,18.79181043]
[1740752198909,14.06159017,143.12,143.03,312.0]
[1740752199213,3.4935,143.12,143.03,312.0]
[1740752199602,18.64964886,143.1,142.97,0.03]
[1740752199930,1.83488949,143.09,142.98,12.36]
[1740752200119,18.64964886,143.07,142.97,0.03]
[1740752200325,18.79181043,143.05,142.97,0.03]
[1740752200488,1.83558558,143.04,142.97,0.03]
[1740752200808,1.83555349,143.04,142.97,0.03]
[1740752200996,1.83585071,143.06,142.97,0.03]
[1740752201197,14.06604697,143.08,142.97,0.03]
[1740752201421,12.2308,143.08,142.97,0.03]
[1740752202007,3.494,143.1,142.97,7.0243]
[1740752202311,3.4935,143.12,142.99,0.14216157]
[1740752202711,13.5931,143.14,143.04,0.14216157]
[1740752202903,13.5931,143.14,143.05,12.36]
[1740752203506,10.1,143.14,143.05,12.36]
[1740752203728,10.1,143.14,143.06,0.14216157]
[1740752203920,13.593,143.14,143.06,117.72]
[1740752204233,13.5932,143.14,143.06,117.72]
[1740752204737,10.1,143.14,143.07,0.14216157]
[1740752205212,0.063,143.14,143.09,0.14216157]
[1740752205528,0.063,143.14,143.07,2.14216157]
[1740752205710,0.063,143.14,143.07,0.14216157]
[1740752205915,0.063,143.14,143.07,18.79181043]
[1740752206115,0.063,143.14,143.13,312.0]
[1740752207734,0.063,143.14,143.13,312.14216157]
[1740752207902,0.063,143.14,143.13,363.99181043]
[1740752208110,0.063,143.14,143.13,370.97841043]
[1740752208331,0.063,143.14,143.13,372.97841043]
[1740752208508,18.6836,143.27,143.14,0.14216157]
[1740752208826,3.4901,143.26,143.14,0.14216157]
[1740752209202,0.063,143.29,143.2,18.64964886]
[1740752209422,0.063,143.29,143.23,0.14216157]
[1740752210518,0.063,143.29,143.21,150.88]
[1740752210711,0.063,143.29,143.22,0.14216157]
[1740752210906,0.063,143.29,143.24,0.14216157]
[1740752211128,0.063,143.29,143.24,39.65181043]
[1740752211326,0.063,143.29,143.28,39.50964886]
[1740752211505,0.063,143.29,143.28,43.65181043]
[1740752211705,0.063,143.29,143.28,351.65181043]
[1740752212113,0.063,143.29,143.28,312.14216157]
[1740752213123,0.063,143.29,143.28,312.0]
[1740752213619,0.063,143.29,143.21,130.02]
[1740752214632,0.063,143.29,143.25,0.14216157]
[1740752216243,0.063,143.29,143.28,39.65181043]
[1740752216421,0.063,143.29,143.28,355.65181043]
[1740752217029,0.063,143.29,143.28,353.65181043]
[1740752217248,0.063,143.29,143.28,355.65181043]
[1740752217542,0.063,143.29,143.28,358.63111043]
[1740752218116,0.063,143.29,143.28,330.79181043]
[1740752218541,0.063,143.29,143.28,476.21111043]
[1740752218843,0.063,143.29,143.28,480.21111043]
[1740752219228,0.063,143.29,143.28,478.21111043]
[1740752219425,3.4865,143.41,143.31,20.0]
[1740752219618,3.4852,143.46,143.32,53.97181043]
[1740752219818,3.4852,143.46,143.32,55.97181043]
[1740752220017,3.4852,143.46,143.37,0.14216157]
[1740752220225,0.063,143.52,143.41,18.79181043]
[1740752220426,3.5473,143.5,143.44,0.14216157]
[1740752220623,3.5473,143.5,143.43,0.14216157]
[1740752221136,0.063,143.5,143.47,0.14216157]
[1740752221339,0.063,143.5,143.47,39.65181043]
[1740752221521,0.063,143.5,143.49,0.14216157]
[1740752221842,0.063,143.5,143.43,0.14216157]
[1740752222142,0.063,143.5,143.49,22.79181043]
[1740752222640,0.063,143.52,143.51,41.00216157]
[1740752222841,0.063,143.52,143.51,75.95181043]
[1740752223218,0.063,143.55,143.54,40.79181043]
[1740752223424,0.063,143.55,143.54,158.33181043]
[1740752223740,0.063,143.55,143.54,136.33181043]
[1740752224219,0.063,143.55,143.54,138.33181043]
[1740752224418,0.06357589,143.6,143.57,20.14216157]
[1740752224623,0.063,143.65,143.59,0.14216157]
[1740752224840,0.063,143.65,143.63,18.79181043]
[1740752225044,0.063,143.65,143.63,20.79181043]
[1740752225227,0.063,143.65,143.64,20.79181043]
[1740752225759,0.063,143.65,143.64,18.79181043]
[1740752226045,0.063,143.65,143.64,330.79181043]
[1740752226218,0.063,143.65,143.64,312.14216157]
[1740752226427,0.063,143.65,143.64,337.75361043]
[1740752226626,0.063,143.71,143.7,2.0]
[1740752226829,0.063,143.71,143.7,150.47181043]
[1740752227035,0.063,143.71,143.7,171.33181043]
[1740752227437,34.59441402,143.85,143.73,18.79181043]
[1740752227624,3.4762,143.84,143.73,25.74911043]
[1740752227829,3.4762,143.84,143.73,0.14216157]
[1740752228030,3.4762,143.84,143.72,0.14216157]
[1740752228235,3.4762,143.84,143.72,18.79181043]
[1740752228520,0.063,143.86,143.76,18.79181043]
[1740752228847,0.063,143.86,143.82,2.14216157]
[1740752229039,0.063,143.86,143.84,2.14216157]
[1740752229237,0.063,143.86,143.85,20.79181043]
[1740752229417,34.74858768,144.01,143.86,2.14216157]
[1740752229622,34.88855019,143.99,143.88,18.79181043]
[1740752229822,3.4722,144.0,143.88,18.79181043]
[1740752230051,5.4722,144.0,143.83,129.66]
[1740752230225,5.29559376,144.0,143.84,0.14216157]
[1740752230551,15.97609376,144.0,143.84,0.14216157]
[1740752230743,20.64964886,143.99,143.83,129.66]
[1740752230947,1.82368229,143.98,143.89,0.14216157]
[1740752231138,12.1527,144.0,143.88,312.0]
[1740752231324,12.1527,144.0,143.89,0.14216157]
[1740752231325,3.4722,144.0,143.89,0.14216157]
[1740752231526,0.063,144.04,143.89,18.79181043]
[1740752231725,36.18407122,144.03,143.85,6.9516]
[1740752231928,2.0,144.0,143.83,129.66]